[Event "Titled Tuesday Blitz October 11 Early 2022"]
[White "Andreev, Eduard"]
[Black "Samaganova, Aleksandra"]
[WhiteFideId "14103400"]
[BlackFideId "13800221"]
[WhiteElo "2368"]
[BlackElo "1864"]
[Result "0-1"]
[Round "02"]
[TimeControl "180+1"]
[Date "2022.10.12"]
[WhiteClock "0:00:01"]
[BlackClock "0:00:04"]

1. e4 {[%clk 0:03:00]}  c5 {[%clk 0:02:59]} 2. Nf3 {[%clk 0:02:59]}  e6 {[%clk 0:03:00]} 3. d4 {[%clk 0:02:58]}  cxd4 {[%clk 0:03:00]} 4. Nxd4 {[%clk 0:02:57]}  a6 {[%clk 0:02:57]} 5. Nc3 {[%clk 0:02:56]}  Qc7 {[%clk 0:02:57]} 6. Bd3 {[%clk 0:02:56]}  Nf6 {[%clk 0:02:57]} 7. f4 {[%clk 0:02:56]}  d6 {[%clk 0:02:53]} 8. Qe2 {[%clk 0:02:55]}  Nbd7 {[%clk 0:02:48]} 9. g4 {[%clk 0:02:54]}  h6 {[%clk 0:02:44]} 10. Bd2 {[%clk 0:02:48]}  b5 {[%clk 0:02:38]} 11. a3 {[%clk 0:02:47]}  Bb7 {[%clk 0:02:32]} 12. O-O-O {[%clk 0:02:45]}  Be7 {[%clk 0:02:27]} 13. g5 {[%clk 0:02:43]}  hxg5 {[%clk 0:02:21]} 14. fxg5 {[%clk 0:02:42]}  Nh5 {[%clk 0:02:22]} 15. g6 {[%clk 0:02:41]}  Bf6 {[%clk 0:02:11]} 16. gxf7+ {[%clk 0:02:37]}  Kxf7 {[%clk 0:02:11]} 17. Rdf1 {[%clk 0:02:27]}  Ne5 {[%clk 0:01:58]} 18. Nf3 {[%clk 0:02:25]}  Nxd3+ {[%clk 0:01:38]} 19. Qxd3 {[%clk 0:02:22]}  Ke7 {[%clk 0:01:38]} 20. Rhg1 {[%clk 0:02:16]}  Raf8 {[%clk 0:01:19]} 21. Kb1 {[%clk 0:02:00]}  Qc4 {[%clk 0:01:09]} 22. Qe3 {[%clk 0:01:58]}  Kd7 {[%clk 0:01:06]} 23. e5 {[%clk 0:01:29]}  Bxe5 {[%clk 0:00:46]} 24. Nxe5+ {[%clk 0:01:27]}  dxe5 {[%clk 0:00:42]} 25. Rxf8 {[%clk 0:01:25]}  Rxf8 {[%clk 0:00:37]} 26. Qxe5 {[%clk 0:01:24]}  Rf1+ {[%clk 0:00:35]} 27. Rxf1 {[%clk 0:01:23]}  Qxf1+ {[%clk 0:00:36]} 28. Ka2 {[%clk 0:01:22]}  Qc4+ {[%clk 0:00:34]} 29. b3 {[%clk 0:01:22]}  Qg4 {[%clk 0:00:34]} 30. Be3 {[%clk 0:01:09]}  Nf6 {[%clk 0:00:29]} 31. Bf4 {[%clk 0:00:56]}  Qg2 {[%clk 0:00:21]} 32. Kb2 {[%clk 0:00:51]}  Qc6 {[%clk 0:00:19]} 33. Qd4+ {[%clk 0:00:45]}  Ke7 {[%clk 0:00:16]} 34. Be5 {[%clk 0:00:44]}  Qd7 {[%clk 0:00:12]} 35. Qc5+ {[%clk 0:00:35]}  Kf7 {[%clk 0:00:11]} 36. h4 {[%clk 0:00:32]}  Nd5 {[%clk 0:00:07]} 37. Ne4 {[%clk 0:00:30]}  Nf6 {[%clk 0:00:04]} 38. Nd6+ {[%clk 0:00:27]}  Kg8 {[%clk 0:00:04]} 39. h5 {[%clk 0:00:21]}  Bd5 {[%clk 0:00:03]} 40. h6 {[%clk 0:00:20]}  Kh7 {[%clk 0:00:03]} 41. hxg7 {[%clk 0:00:19]}  Kxg7 {[%clk 0:00:04]} 42. Qf2 {[%clk 0:00:17]}  Qe7 {[%clk 0:00:03]} 43. Bxf6+ {[%clk 0:00:17]}  Qxf6+ {[%clk 0:00:03]} 44. Qxf6+ {[%clk 0:00:16]}  Kxf6 {[%clk 0:00:04]} 45. Kc3 {[%clk 0:00:15]}  Ke7 {[%clk 0:00:05]} 46. Nc8+ {[%clk 0:00:14]}  Kd8 {[%clk 0:00:02]} 47. Nb6 {[%clk 0:00:12]}  Bf3 {[%clk 0:00:02]} 48. Kd4 {[%clk 0:00:11]}  Kc7 {[%clk 0:00:02]} 49. Kc5 {[%clk 0:00:10]}  Be4 {[%clk 0:00:01]} 50. c3 {[%clk 0:00:09]}  Bf3 {[%clk 0:00:01]} 51. b4 {[%clk 0:00:08]}  Bg2 {[%clk 0:00:01]} 52. a4 {[%clk 0:00:08]}  bxa4 {[%clk 0:00:02]} 53. Nxa4 {[%clk 0:00:08]}  Bf3 {[%clk 0:00:02]} 54. Nb2 {[%clk 0:00:08]}  Be2 {[%clk 0:00:02]} 55. c4 {[%clk 0:00:07]}  Bf3 {[%clk 0:00:03]} 56. Na4 {[%clk 0:00:06]}  Be2 {[%clk 0:00:03]} 57. Nc3 {[%clk 0:00:06]}  Bf1 {[%clk 0:00:03]} 58. Ne4 {[%clk 0:00:05]}  Be2 {[%clk 0:00:03]} 59. Ng5 {[%clk 0:00:05]}  Bg4 {[%clk 0:00:03]} 60. Kd4 {[%clk 0:00:03]}  Kd6 {[%clk 0:00:02]} 61. Ne4+ {[%clk 0:00:03]}  Kc6 {[%clk 0:00:02]} 62. Ke5 {[%clk 0:00:03]}  Kd7 {[%clk 0:00:02]} 63. Nc5+ {[%clk 0:00:02]}  Ke7 {[%clk 0:00:02]} 64. Nxa6 {[%clk 0:00:01]}  Be2 {[%clk 0:00:03]} 65. Kd4 {[%clk 0:00:01]}  Kd7 {[%clk 0:00:03]} 66. Nc5+ {[%clk 0:00:01]}  Kd6 {[%clk 0:00:04]} 0-1


[Site "https://www.chess.com"]

[Event "Titled Tuesday Blitz October 11 Early 2022"]
[White "Averjanov, Alexey"]
[Black "Rosenberg, Evan S"]
[WhiteFideId "14109867"]
[BlackFideId "2019299"]
[WhiteElo "2690"]
[BlackElo "2405"]
[Result "0-1"]
[Round "02"]
[TimeControl "180+1"]
[Date "2022.10.12"]
[WhiteClock "0:01:08"]
[BlackClock "0:00:09"]

1. d4 {[%clk 0:02:38]}  Nf6 {[%clk 0:02:59]} 2. c4 {[%clk 0:02:38]}  c5 {[%clk 0:02:59]} 3. d5 {[%clk 0:02:38]}  e5 {[%clk 0:03:00]} 4. Nc3 {[%clk 0:02:37]}  d6 {[%clk 0:03:00]} 5. e4 {[%clk 0:02:38]}  Be7 {[%clk 0:02:59]} 6. g3 {[%clk 0:02:39]}  h5 {[%clk 0:02:51]} 7. h4 {[%clk 0:02:39]}  Nbd7 {[%clk 0:02:44]} 8. Bh3 {[%clk 0:02:39]}  O-O {[%clk 0:02:32]} 9. Be3 {[%clk 0:02:38]}  Rb8 {[%clk 0:02:24]} 10. a4 {[%clk 0:02:38]}  b6 {[%clk 0:02:21]} 11. b3 {[%clk 0:02:38]}  a6 {[%clk 0:02:15]} 12. Qd3 {[%clk 0:02:37]}  g6 {[%clk 0:02:04]} 13. Nf3 {[%clk 0:02:37]}  Ne8 {[%clk 0:02:04]} 14. Ng5 {[%clk 0:02:36]}  Ng7 {[%clk 0:02:03]} 15. Kf1 {[%clk 0:02:35]}  Nf6 {[%clk 0:01:59]} 16. Bxc8 {[%clk 0:02:35]}  Qxc8 {[%clk 0:01:59]} 17. f3 {[%clk 0:02:31]}  Nh7 {[%clk 0:01:51]} 18. Kg2 {[%clk 0:02:30]}  f6 {[%clk 0:01:43]} 19. Nxh7 {[%clk 0:02:29]}  Kxh7 {[%clk 0:01:43]} 20. f4 {[%clk 0:02:26]}  Qg4 {[%clk 0:01:38]} 21. Qe2 {[%clk 0:02:22]}  f5 {[%clk 0:01:35]} 22. Qxg4 {[%clk 0:02:21]}  fxg4 {[%clk 0:01:21]} 23. fxe5 {[%clk 0:02:20]}  dxe5 {[%clk 0:01:21]} 24. Rhf1 {[%clk 0:02:20]}  Bd6 {[%clk 0:01:17]} 25. Rxf8 {[%clk 0:02:16]}  Rxf8 {[%clk 0:01:16]} 26. Rf1 {[%clk 0:02:17]}  Rxf1 {[%clk 0:01:13]} 27. Kxf1 {[%clk 0:02:18]}  Ne8 {[%clk 0:01:02]} 28. a5 {[%clk 0:02:18]}  bxa5 {[%clk 0:01:00]} 29. Na4 {[%clk 0:02:17]}  Nf6 {[%clk 0:00:59]} 30. Nxc5 {[%clk 0:02:03]}  Bxc5 {[%clk 0:00:58]} 31. Bxc5 {[%clk 0:02:04]}  Nxe4 {[%clk 0:00:59]} 32. Bb6 {[%clk 0:02:04]}  a4 {[%clk 0:00:48]} 33. bxa4 {[%clk 0:02:01]}  Nd2+ {[%clk 0:00:47]} 34. Ke2 {[%clk 0:02:01]}  Nxc4 {[%clk 0:00:48]} 35. Bc7 {[%clk 0:01:58]}  e4 {[%clk 0:00:40]} 36. d6 {[%clk 0:01:50]}  Ne5 {[%clk 0:00:39]} 37. Ke3 {[%clk 0:01:49]}  Kg7 {[%clk 0:00:34]} 38. Kxe4 {[%clk 0:01:50]}  Kf6 {[%clk 0:00:33]} 39. Kd5 {[%clk 0:01:50]}  Nd7 {[%clk 0:00:29]} 40. Bd8+ {[%clk 0:01:46]}  Kf5 {[%clk 0:00:28]} 41. Kc6 {[%clk 0:01:43]}  Ke6 {[%clk 0:00:27]} 42. Be7 {[%clk 0:01:41]}  Ne5+ {[%clk 0:00:22]} 43. Kb6 {[%clk 0:01:39]}  Kd7 {[%clk 0:00:23]} 44. a5 {[%clk 0:01:34]}  g5 {[%clk 0:00:07]} 45. Bxg5 {[%clk 0:01:33]}  Nc4+ {[%clk 0:00:06]} 46. Kxa6 {[%clk 0:01:32]}  Nxd6 {[%clk 0:00:06]} 47. Kb6 {[%clk 0:01:30]}  Nc4+ {[%clk 0:00:05]} 48. Kb5 {[%clk 0:01:28]}  Nd6+ {[%clk 0:00:05]} 49. Kc5 {[%clk 0:01:27]}  Ne4+ {[%clk 0:00:05]} 50. Kb6 {[%clk 0:01:27]}  Nxg5 {[%clk 0:00:04]} 51. hxg5 {[%clk 0:01:28]}  h4 {[%clk 0:00:05]} 52. a6 {[%clk 0:01:11]}  hxg3 {[%clk 0:00:05]} 53. a7 {[%clk 0:01:12]}  g2 {[%clk 0:00:06]} 54. a8=Q {[%clk 0:01:12]}  g1=Q+ {[%clk 0:00:06]} 55. Kb5 {[%clk 0:01:10]}  Qb1+ {[%clk 0:00:06]} 56. Kc4 {[%clk 0:01:09]}  Qc2+ {[%clk 0:00:06]} 57. Kd4 {[%clk 0:01:09]}  Qf2+ {[%clk 0:00:06]} 58. Ke5 {[%clk 0:01:06]}  Qe3+ {[%clk 0:00:05]} 59. Kf6 {[%clk 0:01:05]}  Qf3+ {[%clk 0:00:05]} 60. Kg7 {[%clk 0:01:03]}  Qxa8 {[%clk 0:00:05]} 61. g6 {[%clk 0:01:03]}  Qc6 {[%clk 0:00:05]} 62. Kh7 {[%clk 0:01:03]}  Qxg6+ {[%clk 0:00:05]} 63. Kxg6 {[%clk 0:01:04]}  g3 {[%clk 0:00:06]} 64. Kh7 {[%clk 0:01:05]}  g2 {[%clk 0:00:06]} 65. Kh8 {[%clk 0:01:05]}  g1=Q {[%clk 0:00:07]} 66. Kh7 {[%clk 0:01:06]}  Qg5 {[%clk 0:00:07]} 67. Kh8 {[%clk 0:01:07]}  Ke7 {[%clk 0:00:08]} 68. Kh7 {[%clk 0:01:07]}  Kf7 {[%clk 0:00:08]} 69. Kh8 {[%clk 0:01:08]}  Qg8# {[%clk 0:00:09]} 0-1


[Site "https://www.chess.com"]

[Event "Titled Tuesday Blitz October 11 Early 2022"]
[White "Baskakov, Egor"]
[Black "Jaskolka, Tomasz"]
[WhiteFideId "24197866"]
[BlackFideId "1170791"]
[WhiteElo "2211"]
[BlackElo "2126"]
[Result "1-0"]
[Round "02"]
[TimeControl "180+1"]
[Date "2022.10.12"]
[WhiteClock "0:00:41"]
[BlackClock "0:00:17"]

1. e4 {[%clk 0:03:00]}  d5 {[%clk 0:02:58]} 2. exd5 {[%clk 0:03:00]}  Nf6 {[%clk 0:02:59]} 3. Nf3 {[%clk 0:03:00]}  Bg4 {[%clk 0:02:58]} 4. Be2 {[%clk 0:02:59]}  Nxd5 {[%clk 0:02:55]} 5. d4 {[%clk 0:02:59]}  e6 {[%clk 0:02:55]} 6. O-O {[%clk 0:02:59]}  c6 {[%clk 0:02:55]} 7. c4 {[%clk 0:02:59]}  Nf6 {[%clk 0:02:54]} 8. Nc3 {[%clk 0:02:59]}  Be7 {[%clk 0:02:54]} 9. Bf4 {[%clk 0:02:58]}  Nbd7 {[%clk 0:02:54]} 10. Qd2 {[%clk 0:02:58]}  O-O {[%clk 0:02:53]} 11. Rad1 {[%clk 0:02:59]}  Qa5 {[%clk 0:02:52]} 12. Nd5 {[%clk 0:02:53]}  Qd8 {[%clk 0:02:48]} 13. Nxe7+ {[%clk 0:02:51]}  Qxe7 {[%clk 0:02:47]} 14. Ne5 {[%clk 0:02:48]}  Bxe2 {[%clk 0:02:45]} 15. Qxe2 {[%clk 0:02:49]}  Nxe5 {[%clk 0:02:43]} 16. Bxe5 {[%clk 0:02:47]}  Rfd8 {[%clk 0:02:40]} 17. Rd3 {[%clk 0:02:48]}  Nd7 {[%clk 0:02:35]} 18. Bg3 {[%clk 0:02:45]}  Rac8 {[%clk 0:02:24]} 19. b3 {[%clk 0:02:36]}  Qf6 {[%clk 0:02:17]} 20. Rfd1 {[%clk 0:02:34]}  Qg6 {[%clk 0:02:16]} 21. h3 {[%clk 0:02:27]}  h6 {[%clk 0:02:13]} 22. Qe3 {[%clk 0:02:24]}  a6 {[%clk 0:02:06]} 23. d5 {[%clk 0:02:24]}  cxd5 {[%clk 0:01:49]} 24. cxd5 {[%clk 0:02:25]}  Nf8 {[%clk 0:01:47]} 25. dxe6 {[%clk 0:02:19]}  Rxd3 {[%clk 0:01:28]} 26. exf7+ {[%clk 0:02:19]}  Qxf7 {[%clk 0:01:28]} 27. Rxd3 {[%clk 0:02:18]}  Re8 {[%clk 0:01:25]} 28. Qd2 {[%clk 0:02:15]}  Ne6 {[%clk 0:01:08]} 29. Rd6 {[%clk 0:02:15]}  Ng5 {[%clk 0:01:04]} 30. Rd8 {[%clk 0:02:13]}  Ne4 {[%clk 0:00:50]} 31. Rxe8+ {[%clk 0:02:13]}  Qxe8 {[%clk 0:00:50]} 32. Qd5+ {[%clk 0:02:13]}  Kh8 {[%clk 0:00:47]} 33. Qxb7 {[%clk 0:02:12]}  Nd2 {[%clk 0:00:42]} 34. f4 {[%clk 0:01:23]}  Qe2 {[%clk 0:00:36]} 35. Qc8+ {[%clk 0:01:21]}  Kh7 {[%clk 0:00:36]} 36. Qf5+ {[%clk 0:01:17]}  Kh8 {[%clk 0:00:36]} 37. Qc8+ {[%clk 0:01:17]}  Kh7 {[%clk 0:00:36]} 38. Qc1 {[%clk 0:01:16]}  Qe3+ {[%clk 0:00:34]} 39. Kh1 {[%clk 0:01:11]}  Qd3 {[%clk 0:00:26]} 40. Qd1 {[%clk 0:01:04]}  Qe3 {[%clk 0:00:21]} 41. Qe1 {[%clk 0:00:51]}  Qd3 {[%clk 0:00:18]} 42. f5 {[%clk 0:00:50]}  Ne4 {[%clk 0:00:14]} 43. Kh2 {[%clk 0:00:49]}  Nxg3 {[%clk 0:00:14]} 44. Qxg3 {[%clk 0:00:50]}  Qxf5 {[%clk 0:00:14]} 45. b4 {[%clk 0:00:48]}  h5 {[%clk 0:00:14]} 46. a4 {[%clk 0:00:45]}  Qc2 {[%clk 0:00:08]} 47. Qf3 {[%clk 0:00:39]}  Qxa4 {[%clk 0:00:06]} 48. Qxh5+ {[%clk 0:00:39]}  Kg8 {[%clk 0:00:07]} 49. Qd5+ {[%clk 0:00:39]}  Kf8 {[%clk 0:00:07]} 50. Qc5+ {[%clk 0:00:38]}  Kg8 {[%clk 0:00:07]} 51. h4 {[%clk 0:00:39]}  Kf7 {[%clk 0:00:07]} 52. h5 {[%clk 0:00:38]}  Qd1 {[%clk 0:00:07]} 53. Qf5+ {[%clk 0:00:36]}  Kg8 {[%clk 0:00:07]} 54. Qe6+ {[%clk 0:00:35]}  Kh7 {[%clk 0:00:08]} 55. Qg6+ {[%clk 0:00:35]}  Kg8 {[%clk 0:00:08]} 56. h6 {[%clk 0:00:35]}  Qd7 {[%clk 0:00:07]} 57. Qxg7+ {[%clk 0:00:35]}  Qxg7 {[%clk 0:00:08]} 58. hxg7 {[%clk 0:00:35]}  Kxg7 {[%clk 0:00:08]} 59. Kg3 {[%clk 0:00:36]}  Kg6 {[%clk 0:00:09]} 60. Kf4 {[%clk 0:00:37]}  Kf6 {[%clk 0:00:10]} 61. g4 {[%clk 0:00:37]}  Ke6 {[%clk 0:00:10]} 62. Ke4 {[%clk 0:00:38]}  Kd6 {[%clk 0:00:11]} 63. Kd4 {[%clk 0:00:38]}  Kc6 {[%clk 0:00:11]} 64. g5 {[%clk 0:00:38]}  Kd6 {[%clk 0:00:11]} 65. Kc4 {[%clk 0:00:38]}  Ke5 {[%clk 0:00:11]} 66. Kc5 {[%clk 0:00:39]}  Kf5 {[%clk 0:00:12]} 67. Kb6 {[%clk 0:00:39]}  Kxg5 {[%clk 0:00:13]} 68. Kxa6 {[%clk 0:00:40]}  Kf6 {[%clk 0:00:14]} 69. b5 {[%clk 0:00:40]}  Ke6 {[%clk 0:00:15]} 70. b6 {[%clk 0:00:41]}  Kd7 {[%clk 0:00:16]} 71. b7 {[%clk 0:00:41]}  Kc7 {[%clk 0:00:16]} 72. Ka7 {[%clk 0:00:42]}  Kd8 {[%clk 0:00:16]} 73. b8=Q+ {[%clk 0:00:41]}  Kd7 {[%clk 0:00:17]} 1-0


[Site "https://www.chess.com"]

[Event "Titled Tuesday Blitz October 11 Early 2022"]
[White "Bharath Subramaniyam H"]
[Black "Dehtiarov, Roman"]
[WhiteFideId "46634827"]
[BlackFideId "14186640"]
[WhiteElo "2395"]
[BlackElo "2200"]
[Result "1-0"]
[Round "02"]
[TimeControl "180+1"]
[Date "2022.10.11"]
[WhiteClock "0:01:52"]
[BlackClock "0:00:09"]

1. d4 {[%clk 0:02:58]}  Nf6 {[%clk 0:02:54]} 2. Nc3 {[%clk 0:02:58]}  d5 {[%clk 0:02:54]} 3. Bf4 {[%clk 0:02:57]}  e6 {[%clk 0:02:54]} 4. Nb5 {[%clk 0:02:57]}  Bd6 {[%clk 0:02:53]} 5. Nxd6+ {[%clk 0:02:56]}  cxd6 {[%clk 0:02:54]} 6. e3 {[%clk 0:02:57]}  O-O {[%clk 0:02:50]} 7. Nf3 {[%clk 0:02:56]}  Nc6 {[%clk 0:02:46]} 8. c3 {[%clk 0:02:55]}  Re8 {[%clk 0:02:46]} 9. h3 {[%clk 0:02:53]}  a6 {[%clk 0:02:43]} 10. Be2 {[%clk 0:02:52]}  e5 {[%clk 0:02:41]} 11. Bh2 {[%clk 0:02:52]}  Qe7 {[%clk 0:02:39]} 12. O-O {[%clk 0:02:52]}  Bf5 {[%clk 0:02:35]} 13. Rc1 {[%clk 0:02:48]}  Rad8 {[%clk 0:02:31]} 14. Qb3 {[%clk 0:02:46]}  Bg6 {[%clk 0:02:26]} 15. Rfd1 {[%clk 0:02:45]}  b5 {[%clk 0:02:24]} 16. a4 {[%clk 0:02:44]}  Na5 {[%clk 0:02:11]} 17. Qb4 {[%clk 0:02:43]}  Nc6 {[%clk 0:02:07]} 18. Qa3 {[%clk 0:02:42]}  Qb7 {[%clk 0:02:04]} 19. axb5 {[%clk 0:02:37]}  axb5 {[%clk 0:02:05]} 20. Qb3 {[%clk 0:02:37]}  Rb8 {[%clk 0:01:54]} 21. Ra1 {[%clk 0:02:33]}  b4 {[%clk 0:01:50]} 22. cxb4 {[%clk 0:02:25]}  Qxb4 {[%clk 0:01:45]} 23. Qxb4 {[%clk 0:02:23]}  Rxb4 {[%clk 0:01:46]} 24. dxe5 {[%clk 0:02:23]}  Nxe5 {[%clk 0:01:41]} 25. Rd2 {[%clk 0:02:17]}  Ne4 {[%clk 0:01:21]} 26. Rxd5 {[%clk 0:02:15]}  Rxb2 {[%clk 0:01:17]} 27. Bb5 {[%clk 0:02:13]}  Rb8 {[%clk 0:01:11]} 28. Nxe5 {[%clk 0:02:10]}  dxe5 {[%clk 0:01:05]} 29. Bxe5 {[%clk 0:02:11]}  R2xb5 {[%clk 0:00:52]} 30. Rxb5 {[%clk 0:02:08]}  Re8 {[%clk 0:00:52]} 31. Rb8 {[%clk 0:02:05]}  Rxb8 {[%clk 0:00:52]} 32. Bxb8 {[%clk 0:02:06]}  h6 {[%clk 0:00:52]} 33. f3 {[%clk 0:02:05]}  Nc5 {[%clk 0:00:48]} 34. e4 {[%clk 0:02:06]}  Ne6 {[%clk 0:00:47]} 35. Re1 {[%clk 0:02:01]}  Kf8 {[%clk 0:00:40]} 36. Kf2 {[%clk 0:02:00]}  f6 {[%clk 0:00:34]} 37. g4 {[%clk 0:02:00]}  Bf7 {[%clk 0:00:33]} 38. f4 {[%clk 0:02:00]}  g5 {[%clk 0:00:32]} 39. f5 {[%clk 0:02:01]}  Nd4 {[%clk 0:00:29]} 40. Bd6+ {[%clk 0:01:58]}  Kg8 {[%clk 0:00:27]} 41. Rc1 {[%clk 0:01:54]}  Nb5 {[%clk 0:00:20]} 42. Rc8+ {[%clk 0:01:52]}  Kh7 {[%clk 0:00:17]} 43. e5 {[%clk 0:01:50]}  h5 {[%clk 0:00:14]} 44. Be7 {[%clk 0:01:49]}  fxe5 {[%clk 0:00:13]} 45. Bf6 {[%clk 0:01:50]}  Bg8 {[%clk 0:00:12]} 46. Bxe5 {[%clk 0:01:49]}  hxg4 {[%clk 0:00:11]} 47. hxg4 {[%clk 0:01:50]}  Na3 {[%clk 0:00:09]} 48. Rc7+ {[%clk 0:01:50]}  Kh6 {[%clk 0:00:09]} 49. Bg7+ {[%clk 0:01:50]}  Kh7 {[%clk 0:00:09]} 50. Bf8+ {[%clk 0:01:51]}  Kh8 {[%clk 0:00:09]} 51. Bxa3 {[%clk 0:01:52]} 1-0


[Site "https://www.chess.com"]

[Event "Titled Tuesday Blitz October 11 Early 2022"]
[White "Borgaonkar Akshay"]
[Black "Xie, Bryan"]
[WhiteFideId "25639110"]
[BlackFideId "30941296"]
[WhiteElo "2063"]
[BlackElo "2033"]
[Result "1-0"]
[Round "02"]
[TimeControl "180+1"]
[Date "2022.10.12"]
[WhiteClock "0:00:30"]
[BlackClock "0:00:03"]

1. Nf3 {[%clk 0:03:00]}  Nf6 {[%clk 0:02:59]} 2. b3 {[%clk 0:03:01]}  e6 {[%clk 0:02:59]} 3. Bb2 {[%clk 0:03:02]}  b6 {[%clk 0:02:56]} 4. e3 {[%clk 0:03:01]}  Bb7 {[%clk 0:02:56]} 5. d4 {[%clk 0:02:59]}  c5 {[%clk 0:02:55]} 6. Nbd2 {[%clk 0:02:58]}  Be7 {[%clk 0:02:53]} 7. Bd3 {[%clk 0:02:56]}  O-O {[%clk 0:02:52]} 8. O-O {[%clk 0:02:54]}  d6 {[%clk 0:02:52]} 9. c4 {[%clk 0:02:52]}  Nbd7 {[%clk 0:02:47]} 10. Re1 {[%clk 0:02:46]}  Qc7 {[%clk 0:02:47]} 11. Rc1 {[%clk 0:02:41]}  e5 {[%clk 0:02:42]} 12. d5 {[%clk 0:02:37]}  Rfe8 {[%clk 0:02:39]} 13. e4 {[%clk 0:02:35]}  Nf8 {[%clk 0:02:33]} 14. Nh4 {[%clk 0:02:30]}  Ng6 {[%clk 0:02:27]} 15. Nf5 {[%clk 0:02:28]}  Bf8 {[%clk 0:02:15]} 16. Bf1 {[%clk 0:02:27]}  Bc8 {[%clk 0:02:11]} 17. g3 {[%clk 0:02:09]}  Nxe4 {[%clk 0:01:25]} 18. Nh6+ {[%clk 0:01:37]}  gxh6 {[%clk 0:01:16]} 19. Nxe4 {[%clk 0:01:37]}  Bg7 {[%clk 0:01:16]} 20. f4 {[%clk 0:01:29]}  f5 {[%clk 0:01:12]} 21. Nf2 {[%clk 0:01:21]}  e4 {[%clk 0:01:06]} 22. Bxg7 {[%clk 0:01:19]}  Qxg7 {[%clk 0:01:05]} 23. Qd2 {[%clk 0:00:58]}  h5 {[%clk 0:00:21]} 24. Qe3 {[%clk 0:00:55]}  h4 {[%clk 0:00:21]} 25. Be2 {[%clk 0:00:53]}  hxg3 {[%clk 0:00:19]} 26. hxg3 {[%clk 0:00:53]}  Bd7 {[%clk 0:00:15]} 27. Bh5 {[%clk 0:00:53]}  Re7 {[%clk 0:00:13]} 28. Bxg6 {[%clk 0:00:52]}  hxg6 {[%clk 0:00:10]} 29. Nh3 {[%clk 0:00:52]}  Qh6 {[%clk 0:00:05]} 30. Ng5 {[%clk 0:00:52]}  Rae8 {[%clk 0:00:02]} 31. Kg2 {[%clk 0:00:52]}  Qg7 {[%clk 0:00:02]} 32. Qe2 {[%clk 0:00:46]}  Qd4 {[%clk 0:00:02]} 33. Rh1 {[%clk 0:00:45]}  e3 {[%clk 0:00:02]} 34. Rh6 {[%clk 0:00:45]}  Kg7 {[%clk 0:00:01]} 35. Rch1 {[%clk 0:00:44]}  Kf6 {[%clk 0:00:02]} 36. Rh7 {[%clk 0:00:41]}  Rxh7 {[%clk 0:00:01]} 37. Rxh7 {[%clk 0:00:41]}  Re7 {[%clk 0:00:02]} 38. Rh8 {[%clk 0:00:35]}  Rg7 {[%clk 0:00:02]} 39. Kf3 {[%clk 0:00:31]}  Qe4+ {[%clk 0:00:02]} 40. Nxe4+ {[%clk 0:00:30]}  fxe4+ {[%clk 0:00:03]} 41. Kxe4 {[%clk 0:00:31]}  Bf5+ {[%clk 0:00:03]} 42. Kf3 {[%clk 0:00:29]}  Re7 {[%clk 0:00:02]} 43. g4 {[%clk 0:00:29]}  Bd3 {[%clk 0:00:02]} 44. Qxd3 {[%clk 0:00:28]}  e2 {[%clk 0:00:03]} 45. Qc3+ {[%clk 0:00:28]}  Kf7 {[%clk 0:00:03]} 46. Rh7+ {[%clk 0:00:29]}  Kf8 {[%clk 0:00:03]} 47. Rxe7 {[%clk 0:00:30]} 1-0


[Site "https://www.chess.com"]

[Event "Titled Tuesday Blitz October 11 Early 2022"]
[White "Boros, Denes"]
[Black "Evdokimov, Alexey"]
[WhiteFideId "722340"]
[BlackFideId "24162450"]
[WhiteElo "2464"]
[BlackElo "2154"]
[Result "1-0"]
[Round "02"]
[TimeControl "180+1"]
[Date "2022.10.12"]
[WhiteClock "0:01:20"]
[BlackClock "0:00:01"]

1. d4 {[%clk 0:03:00]}  Nf6 {[%clk 0:02:59]} 2. Nc3 {[%clk 0:03:01]}  d5 {[%clk 0:02:56]} 3. Nf3 {[%clk 0:03:02]}  c5 {[%clk 0:02:54]} 4. Bg5 {[%clk 0:03:02]}  cxd4 {[%clk 0:02:37]} 5. Bxf6 {[%clk 0:03:02]}  gxf6 {[%clk 0:02:33]} 6. Qxd4 {[%clk 0:03:00]}  e6 {[%clk 0:02:18]} 7. e4 {[%clk 0:02:59]}  Nc6 {[%clk 0:02:03]} 8. Bb5 {[%clk 0:02:58]}  Bd7 {[%clk 0:01:50]} 9. Qe3 {[%clk 0:02:46]}  d4 {[%clk 0:01:18]} 10. Nxd4 {[%clk 0:02:43]}  Nxd4 {[%clk 0:01:18]} 11. Qxd4 {[%clk 0:02:39]}  Bxb5 {[%clk 0:01:14]} 12. Nxb5 {[%clk 0:02:28]}  Qa5+ {[%clk 0:01:01]} 13. Nc3 {[%clk 0:02:26]}  Be7 {[%clk 0:00:37]} 14. O-O {[%clk 0:02:21]}  Rd8 {[%clk 0:00:32]} 15. Qe3 {[%clk 0:02:19]}  Rg8 {[%clk 0:00:26]} 16. Rad1 {[%clk 0:02:11]}  Rxd1 {[%clk 0:00:20]} 17. Rxd1 {[%clk 0:02:11]}  Qh5 {[%clk 0:00:18]} 18. Qxa7 {[%clk 0:02:03]}  Kf8 {[%clk 0:00:06]} 19. Qb8+ {[%clk 0:01:58]}  Kg7 {[%clk 0:00:06]} 20. Qxb7 {[%clk 0:01:59]}  Bc5 {[%clk 0:00:05]} 21. b4 {[%clk 0:01:51]}  Bxf2+ {[%clk 0:00:03]} 22. Kxf2 {[%clk 0:01:50]}  Kh8 {[%clk 0:00:03]} 23. Qc7 {[%clk 0:01:37]}  Qh4+ {[%clk 0:00:03]} 24. Kg1 {[%clk 0:01:35]}  Qg4 {[%clk 0:00:03]} 25. Qg3 {[%clk 0:01:29]}  Qh5 {[%clk 0:00:03]} 26. Qf2 {[%clk 0:01:27]}  Qe5 {[%clk 0:00:03]} 27. Qd4 {[%clk 0:01:23]}  Qf4 {[%clk 0:00:02]} 28. Rf1 {[%clk 0:01:21]}  Qh4 {[%clk 0:00:01]} 29. Qxf6+ {[%clk 0:01:20]} 1-0


[Site "https://www.chess.com"]

[Event "Titled Tuesday Blitz October 11 Early 2022"]
[White "Broca Jimenez, Fernando"]
[Black "Shvedova, Alexandra"]
[WhiteFideId "5104742"]
[BlackFideId "54154782"]
[WhiteElo "2062"]
[BlackElo "2090"]
[Result "0-1"]
[Round "02"]
[TimeControl "180+1"]
[Date "2022.10.12"]
[WhiteClock "0:00:16"]
[BlackClock "0:00:48"]

1. e4 {[%clk 0:02:59]}  c5 {[%clk 0:02:59]} 2. c3 {[%clk 0:02:59]}  Nf6 {[%clk 0:02:58]} 3. e5 {[%clk 0:02:59]}  Nd5 {[%clk 0:02:59]} 4. d4 {[%clk 0:02:59]}  cxd4 {[%clk 0:03:00]} 5. cxd4 {[%clk 0:03:00]}  d6 {[%clk 0:02:57]} 6. Nf3 {[%clk 0:03:00]}  Nc6 {[%clk 0:02:55]} 7. Nc3 {[%clk 0:03:00]}  dxe5 {[%clk 0:02:52]} 8. dxe5 {[%clk 0:02:51]}  Be6 {[%clk 0:02:43]} 9. Bd2 {[%clk 0:02:38]}  Ndb4 {[%clk 0:02:35]} 10. a3 {[%clk 0:01:25]}  Nd3+ {[%clk 0:02:33]} 11. Bxd3 {[%clk 0:01:26]}  Qxd3 {[%clk 0:02:34]} 12. Bf4 {[%clk 0:01:22]}  Qc4 {[%clk 0:02:27]} 13. Ne2 {[%clk 0:01:05]}  Rd8 {[%clk 0:02:24]} 14. Qc1 {[%clk 0:00:59]}  Qd3 {[%clk 0:02:12]} 15. Qe3 {[%clk 0:00:46]}  Qb5 {[%clk 0:02:07]} 16. O-O {[%clk 0:00:41]}  Rd3 {[%clk 0:01:47]} 17. Nc3 {[%clk 0:00:32]}  Qc4 {[%clk 0:01:35]} 18. Qc1 {[%clk 0:00:29]}  g6 {[%clk 0:01:20]} 19. Re1 {[%clk 0:00:17]}  Bg7 {[%clk 0:01:16]} 20. Re4 {[%clk 0:00:18]}  Qa6 {[%clk 0:01:06]} 21. Qc2 {[%clk 0:00:17]}  O-O {[%clk 0:00:59]} 22. Rae1 {[%clk 0:00:17]}  Bf5 {[%clk 0:00:52]} 23. R4e3 {[%clk 0:00:16]}  Rxe3 {[%clk 0:00:51]} 24. Qd1 {[%clk 0:00:16]}  Rxe1+ {[%clk 0:00:51]} 25. Qxe1 {[%clk 0:00:16]}  Rd8 {[%clk 0:00:48]} 0-1


[Site "https://www.chess.com"]